fUSD/lending_fUSD_20240210
["ID","MTS","AMOUNT","RATE_DAILY","PERIOD"]
[313643581,1707523231349,2205.26890925,0.000199,2]
[313643582,1707523627292,-1250.0,0.00025,3]
[313643583,1707523645995,-229.40076689,0.00024898,2]
[313643584,1707523646018,-4265.84733406,0.00024899,2]
[313643585,1707523646039,-833.57140238,0.000249,2]
[313643586,1707523646061,-11311.18049667,0.00024998,2]
[313643645,1707523832042,-280.91856336,0.00024089,2]
[313643647,1707523832051,-206.0,0.0002409,2]
[313643649,1707523832060,-5048.61641514,0.00024998,2]
[313643654,1707523832098,-1874.69855449,0.00024998,2]
[313643656,1707523832107,-2606.395889,0.00024998,2]
[313643658,1707523832117,-726.82,0.00025,2]
[313643660,1707523832126,-737.67,0.00025,2]
[313643662,1707523832135,-712.76,0.00025,2]
[313643664,1707523832146,-153.31000222,0.00025167,2]
[313643666,1707523832158,-324.41864448,0.00025267,2]
[313643668,1707523832167,-278.65,0.00025392,2]
[313643670,1707523832176,-153.31000212,0.00025468,2]
[313643671,1707523832186,-177.11,0.000257,2]
[313643672,1707523832196,-153.31000212,0.00025768,2]
[313643673,1707523832206,-681.45,0.00025795,2]
[313643674,1707523832215,-500.0,0.00025941,2]
[313643675,1707523832224,-157.021,0.00025998,2]
[313643676,1707523832236,-153.31000212,0.00026069,2]
[313643677,1707523832246,-150.0,0.00026079,2]
[313643678,1707523832256,-177.11,0.00026248,2]
[313643679,1707523832266,-153.31000212,0.0002637,2]
[313643680,1707523832276,-200.0,0.00026597,2]
[313643681,1707523832285,-511.72114891,0.00026597,2]
[313643682,1707523832294,-2980.0,0.000266,2]
[313643683,1707523832304,-7377.8741721,0.00026613,2]
[313643684,1707523832313,-6161.674338,0.0002663,2]
[313643685,1707523832324,-1000.0,0.00026631,2]
[313643686,1707523832334,-87565.7348632,0.00026632,2]
[313643688,1707523832347,-3498.23940414,0.00026632,2]
[313643690,1707523832359,-373.51188536,0.00026632,2]
[313643695,1707523832409,-59113.5928472,0.00026632,2]
[313643697,1707523832418,-4945.4745038,0.00026634,2]
[313643698,1707523832427,-293.92420876,0.00026642,2]
[313643699,1707523832436,-235459.9248606,0.00026648,2]
[313643700,1707523832448,-15830.93260829,0.00026648,2]
[313643701,1707523832460,-8971.69206556,0.00026648,2]
[313643702,1707523832473,-2358.3,0.00026648,2]
[313643703,1707523832488,-325.47333128,0.00026648,2]
[313643704,1707523832518,-544.02,0.00026648,2]
[313643705,1707523832530,-734.66922033,0.00026648,2]
[313643706,1707523832543,-1777.03728473,0.00026648,2]
[313643707,1707523832590,-1220.71277758,0.00026648,2]
[313643708,1707523832602,-881.51369091,0.00026648,2]
[313643709,1707523832613,-23584.5,0.00026648,2]
[313643719,1707523838013,-12754.58151614,0.00026648,2]
[313643720,1707523838026,-876.73274452,0.00026648,2]
[313643721,1707523838135,-730.51242316,0.00026648,2]
[313643722,1707523838149,-741.27723955,0.00026648,2]
[313643723,1707523838164,-420.8888349,0.00026648,2]
[313643724,1707523838176,-313.89851893,0.00026648,2]
[313643725,1707523838311,-297.60793773,0.00026648,2]
[313643726,1707523838363,-800.68838,0.00026648,2]
[313643758,1707523840586,-7702.63860181,0.00026648,2]
[313643759,1707523840598,-421.04963801,0.00026648,2]
[313643760,1707523841441,-49854.48552256,0.00026648,2]
[313643772,1707523843178,-17890.45950987,0.00026648,2]
[313643773,1707523843238,-8482.55998297,0.00026648,2]
[313643774,1707523843292,-2270.47188584,0.00026648,2]
[313643775,1707523843301,-4167.81269404,0.0002665,4]
[313643784,1707523846095,-1049.35800245,0.0002665,4]
[313643820,1707524930608,10000.0,0.00022502,2]
[313643823,1707524942280,10000.0,0.00022502,2]
[313643854,1707524964977,6936.05,0.00022502,2]
[313643857,1707524993019,12055.34522163,0.00022502,2]
[313643859,1707525012850,10559.67272451,0.00022502,2]
[313643864,1707525032178,-282.63,0.00023443,2]
[313643865,1707525032188,-157.012,0.00023998,2]
[313643866,1707525032197,-139.95545,0.00024998,2]
[313643867,1707525032209,-17.05655,0.00024998,2]
[313643868,1707525032219,-347.22612879,0.00025,3]
[313643869,1707525032231,-902.77387121,0.00025,3]
[313643870,1707525032239,-957.62,0.00025169,2]
[313643871,1707525032248,-884.28,0.00025235,2]
[313643872,1707525032257,-750.0,0.00025241,2]
[313643873,1707525032267,-311.9,0.00025253,4]
[313643874,1707525032276,-500.0,0.0002529,2]
[313643875,1707525032285,-324.41864448,0.00025318,2]
[313643876,1707525032294,-250.0,0.00025339,2]
[313643877,1707525032304,-340.72,0.00025361,2]
[313643878,1707525032313,-153.77,0.00025386,2]
[313643879,1707525032322,-153.66177129,0.00025491,2]
[313643880,1707525032331,-1000.0,0.00025541,2]
[313643881,1707525032340,-2150.98,0.00025624,2]
[313643882,1707525032349,-177.11,0.00025649,2]
[313643883,1707525032359,-282.63,0.00025707,2]
[313643884,1707525032369,-153.66177114,0.00025849,2]
[313643885,1707525032378,-157.012,0.00025998,2]
[313643886,1707525032388,-150.0,0.00026079,2]
[313643887,1707525032397,-177.11,0.00026197,2]
[313643888,1707525032406,-153.66177114,0.00026207,2]
[313643889,1707525032415,-673.95964755,0.0002655,2]
[313643890,1707525032427,-382.0077164,0.0002655,2]
[313643891,1707525032438,-492.88843605,0.0002655,2]
[313643892,1707525032447,-600.85095487,0.00026551,2]
[313643893,1707525032456,-153.66177114,0.00026565,2]
[313643894,1707525032465,-172.66,0.00026592,2]
[313643895,1707525032475,-817.8547533,0.000266,3]
[313643897,1707525032485,-253.63231575,0.00026646,2]
[313643900,1707525032497,-2587.50978063,0.00026646,2]
[313643928,1707525032752,-6827.99797792,0.00026646,2]
[313643931,1707525032761,-397.36831192,0.00026647,2]
[313643933,1707525032771,-506.70255148,0.00026648,2]
[313643934,1707525032780,-2316.37263181,0.00026648,2]
[313643937,1707525032790,-254.85613051,0.00026649,2]
[313643938,1707525032799,-1407.31579397,0.00026649,2]
[313643941,1707525032809,-159.37624852,0.00026649,2]
[313643943,1707525032819,-1046.30905086,0.00026649,2]
[313643945,1707525032828,-339.08181923,0.00026649,2]
[313643947,1707525032837,-13484.19709235,0.0002665,4]
[313643949,1707525032846,-511.72114891,0.0002665,2]
[313643951,1707525032855,-200.0,0.0002665,2]
[313643952,1707525032864,-1000.0,0.0002665,2]
[313643955,1707525032874,-195760.65484882,0.00026651,2]
[313643957,1707525032885,-562.34159793,0.00026651,2]
[313643959,1707525032896,-831.66345468,0.00026651,2]
[313643961,1707525032907,-502.50678473,0.00026651,2]
[313643963,1707525032918,-1073.34824939,0.00026651,2]
[313643966,1707525032934,-910.41044073,0.00026651,2]
[313643968,1707525032946,-1894.52100381,0.00026651,2]
[313643971,1707525032957,-1095.04735849,0.00026651,2]
[313643973,1707525032968,-654.05925543,0.00026651,2]
[313643981,1707525033037,-2105.34121199,0.00026651,2]
[313643986,1707525033069,-14726.5222613,0.00026651,2]
[313643988,1707525033080,-1639.97491973,0.00026651,2]
[313644002,1707525033274,-1394.19054399,0.00026651,2]
[313644003,1707525033303,-5943.16517463,0.00026651,2]
[313644017,1707525038299,-3083.93062824,0.00026651,2]
[313644018,1707525038311,-1331.20025,0.00026651,2]
[313644019,1707525038344,-311.99235321,0.00026651,2]
[313644020,1707525038357,-341.52480965,0.00026651,2]
[313644021,1707525038441,-20196.13232714,0.00026651,2]
[313644041,1707525041135,-44571.3373975,0.00026651,2]
[313644042,1707525041175,-435.75681725,0.00026651,2]
[313644058,1707525043353,-678.59930484,0.00026651,2]
[313644064,1707525043464,-2168.49224308,0.00026651,2]
[313644065,1707525043475,-651.06340159,0.00026651,2]
[313644066,1707525043522,-2221.82731439,0.00026651,2]
[313644067,1707525043576,-910.50949508,0.00026651,2]
[313644068,1707525043635,-1191.00001276,0.00026651,2]
[313644069,1707525043647,-545.81722233,0.00026651,2]
[313644070,1707525043659,-279.20136684,0.00026651,2]
[313644073,1707525046166,-2017.29972325,0.00026651,2]
[313644074,1707525046179,-297.01745188,0.00026651,2]
[313644075,1707525046191,-1821.66763034,0.00026651,2]
[313644076,1707525046203,-1630.30079944,0.00026651,2]
[313644077,1707525046244,-280.27417697,0.00026651,2]
[313644078,1707525046258,-379.24221432,0.00026651,2]
[313644079,1707525046271,-285.11985045,0.00026651,2]
[313644080,1707525046563,-2903.85647648,0.00026651,2]
[313644081,1707525046575,-2449.91985767,0.00026651,2]
[313644082,1707525046587,-5568.65039128,0.00026651,2]
[313644083,1707525046597,-782.33638109,0.0002667,2]
[313644084,1707525046609,-1735.66361891,0.0002667,2]
[313644085,1707525046618,-15099.0,0.000267,2]
[313644086,1707525046627,-153.77,0.00026709,2]
[313644087,1707525046636,-177.11,0.00026745,2]
[313644088,1707525046645,-688.73882902,0.00026757,2]
[313644089,1707525046654,-277.58577255,0.00026757,2]
[313644090,1707525046664,-647.86277859,0.00026757,2]
[313644091,1707525046673,-380.09202361,0.00026757,2]
[313644092,1707525046682,-884.28,0.00026879,2]
[313644093,1707525046691,-198.73,0.000269,2]
[313644094,1707525046700,-153.66177114,0.00026922,2]
[313644095,1707525046709,-157.021,0.00026998,2]
[313644096,1707525046718,-1300.0,0.00027,3]
[313644097,1707525046727,-206.0,0.00027075,2]
[313644098,1707525046737,-153.66177114,0.0002728,2]
[313644099,1707525046746,-177.11,0.00027293,2]
[313644100,1707525046755,-155.0,0.00027397,2]
[313644101,1707525046764,-314.99,0.00027397,2]
[313644102,1707525046774,-152.14,0.00027397,2]
[313644103,1707525046783,-231.71,0.00027397,2]
[313644104,1707525046792,-355.76,0.00027397,2]
[313644105,1707525046801,-210.38,0.00027397,2]
[313644106,1707525046810,-302.32,0.00027397,2]
[313644107,1707525046819,-150.0,0.00027397,2]
[313644108,1707525046828,-150.0,0.00027397,2]
[313644109,1707525046837,-150.0,0.00027397,2]
[313644110,1707525046846,-150.0,0.00027397,2]
[313644111,1707525046855,-150.0,0.00027397,2]
[313644112,1707525046865,-150.0,0.00027397,2]
[313644113,1707525046874,-150.0,0.00027397,2]
[313644114,1707525046883,-699.61,0.00027397,2]
[313644115,1707525046892,-860.23,0.00027397,2]
[313644116,1707525046902,-153.66177114,0.00027638,2]
[313644117,1707525046911,-166.86,0.00027662,2]
[313644118,1707525046921,-500.0,0.00027832,2]
[313644119,1707525046930,-500.0,0.00027832,2]
[313644120,1707525046939,-500.0,0.00027832,2]
[313644121,1707525046948,-500.0,0.00027832,2]
[313644122,1707525046957,-500.0,0.00027832,2]
[313644123,1707525046967,-500.0,0.00027832,2]
[313644124,1707525046977,-500.0,0.00027832,2]
[313644125,1707525046987,-500.0,0.00027832,2]
[313644126,1707525046996,-292.024,0.00027832,2]
[313644127,1707525047005,-151.086,0.00027832,2]
[313644128,1707525047014,-177.11,0.00027841,2]
[313644129,1707525047023,-172.66,0.00027962,2]
[313644130,1707525047032,-282.63,0.00027971,2]
[313644131,1707525047041,-153.66177114,0.00027996,2]
[313644132,1707525047050,-157.021,0.00027998,2]
[313644133,1707525047059,-755.30376287,0.00028,2]
[313644134,1707525047072,-3979.34861415,0.00028,2]
[313644135,1707525047081,-422.654,0.00028198,2]
[313644136,1707525047090,-417.99,0.00028219,2]
[313644137,1707525047098,-417.99,0.00028219,2]
[313644138,1707525047107,-417.99,0.00028219,2]
[313644139,1707525047116,-417.99,0.00028219,2]
[313644140,1707525047125,-417.99,0.00028219,2]
[313644141,1707525047134,-739.85,0.00028219,2]
[313644142,1707525047143,-835.83,0.00028219,2]
[313644143,1707525047152,-153.66177114,0.00028354,2]
[313644144,1707525047162,-177.11,0.00028389,2]
[313644145,1707525047171,-817.85475323,0.00028422,4]
[313644146,1707525047179,-884.28,0.00028522,2]
[313644147,1707525047188,-153.66177114,0.00028712,2]
[313644148,1707525047197,-1000.0,0.00028734,2]
[313644149,1707525047206,-155.0,0.00028767,2]
[313644150,1707525047215,-500.0,0.00028798,2]
[313644151,1707525047224,-177.11,0.00028937,2]
[313644152,1707525047234,-157.021,0.00028998,2]
[313644153,1707525047243,-250.0,0.00028999,2]
[313644154,1707525047252,-298.01270489,0.00028999,2]
[313644155,1707525047261,-589.04980888,0.00029,3]
[313644156,1707525047283,-544.65751123,0.00029,3]
[313644157,1707525047298,-216.29267989,0.00029,3]
[313644158,1707525047307,-417.99,0.00029041,2]
[313644159,1707525047316,-417.99,0.00029041,2]
[313644160,1707525047325,-417.99,0.00029041,2]
[313644161,1707525047334,-417.99,0.00029041,2]
[313644162,1707525047343,-848.29,0.00029041,2]
[313644163,1707525047352,-411.17,0.00029041,2]
[313644164,1707525047362,-705.8,0.00029041,2]
[313644165,1707525047371,-153.66177114,0.0002907,2]
[313644166,1707525047381,-250.0,0.00029273,2]
[313644167,1707525047390,-153.66177114,0.00029428,2]
[313644168,1707525047400,-177.11,0.00029485,2]
[313644169,1707525047409,-387.5129487,0.00029598,2]
[313644170,1707525047418,-249.0831616,0.00029697,2]
[313644171,1707525047427,-153.43646037,0.00029699,2]
[313644172,1707525047436,-800.0,0.00029759,2]
[313644173,1707525047445,-206.148342,0.00029759,3]
[313644174,1707525047455,-153.66177114,0.00029785,2]
[313644175,1707525047464,-1257.76218502,0.00029796,2]
[313644176,1707525047473,-229.23938363,0.00029796,2]
[313644177,1707525047482,-1000.0,0.00029797,2]
[313644178,1707525047491,-411.17,0.00029863,2]
[313644179,1707525047500,-411.17,0.00029863,2]
[313644180,1707525047509,-411.17,0.00029863,2]
[313644181,1707525047518,-411.17,0.00029863,2]
[313644182,1707525047528,-864.12,0.00029863,2]
[313644183,1707525047538,-411.17,0.00029863,2]
[313644184,1707525047547,-411.17,0.00029863,2]
[313644185,1707525047556,-411.17,0.00029863,2]
[313644186,1707525047565,-831.5,0.00029863,2]
[313644187,1707525047575,-411.17,0.00029863,2]
[313644188,1707525047585,-411.17,0.00029863,2]
[313644189,1707525047594,-411.17,0.00029863,2]
[313644190,1707525047606,-411.17,0.00029863,2]
[313644191,1707525047615,-411.17,0.00029863,2]
[313644192,1707525047625,-411.17,0.00029863,2]
[313644193,1707525047635,-411.17,0.00029863,2]
[313644194,1707525047645,-411.17,0.00029863,2]
[313644195,1707525047654,-411.17,0.00029863,2]
[313644196,1707525047663,-411.17,0.00029863,2]
[313644197,1707525047672,-409.85,0.00029863,2]
[313644198,1707525047681,-1052.66597639,0.00029896,2]
[313644199,1707525047690,-155.58197379,0.00029896,2]
[313644200,1707525047699,-587.67206676,0.00029897,2]
[313644201,1707525047708,-5250.61403555,0.00029897,2]
[313644202,1707525047717,-2148.52930085,0.00029898,2]
[313644203,1707525047726,-2000.0,0.00029899,3]
[313644204,1707525047736,-873.36502735,0.00029899,2]
[313644205,1707525047745,-4038.50876187,0.000299,2]
[313644206,1707525047758,-260.19334374,0.000299,2]
[313644207,1707525047770,-316.54729673,0.000299,2]
[313644208,1707525047781,-1150.98759627,0.000299,2]
[313644209,1707525047795,-15695.99300139,0.000299,2]
[313644210,1707525047804,-20463.67809741,0.000299,2]
[313644211,1707525047816,-998.56190259,0.000299,2]
[313644212,1707525047825,-1797.607937,0.000299,2]
[313644213,1707525047835,-4768.94142183,0.000299,2]
[313644214,1707525047861,-16693.28857817,0.000299,2]
[313644215,1707525047870,-21462.24,0.000299,2]
[313644216,1707525047879,-5518.54536107,0.00029978,2]
[313644217,1707525047891,-2519.87103153,0.00029978,2]
[313644218,1707525047901,-195.94947251,0.00029989,2]
[313644219,1707525047910,-477.38651707,0.00029995,2]
[313644220,1707525047931,-537.4350766,0.00029995,2]
[313644221,1707525047943,-640.45199759,0.00029995,2]
[313644222,1707525047952,-327.734199,0.00029996,2]
[313644223,1707525047961,-210.10824909,0.00029997,2]
[313644224,1707525047970,-347.61370726,0.00029997,2]
[313644225,1707525047984,-284.89177627,0.00029997,2]
[313644226,1707525047993,-3022.43755205,0.00029997,2]
[313644227,1707525048003,-191.04557841,0.00029997,2]
[313644228,1707525048012,-1099.63523633,0.00029997,2]
[313644229,1707525048021,-240.71499822,0.00029997,2]
[313644230,1707525048030,-1047.55348492,0.00029997,2]
[313644231,1707525048039,-203.22221247,0.00029997,2]
[313644232,1707525048047,-805.83457832,0.00029997,2]
[313644233,1707525360570,440.8347,0.000249,14]
[313644285,1707526231379,-348.04599099,0.00025,2]
[313644286,1707526231389,-105.5430452,0.00025,2]
[313644288,1707526231402,-94.4569548,0.00025,2]
[313644290,1707526231411,-415.68,0.00025894,2]
[313644292,1707526231421,-157.012,0.00025998,2]
[313644293,1707526231431,-352.58076696,0.0002642,2]
[313644294,1707526231441,-10.47579781,0.000266,2]
[313644296,1707526231483,-2820.52420219,0.000266,2]
[313644297,1707526231493,-15202.0,0.000267,2]
[313644298,1707526231502,-157.76958907,0.00026767,2]
[313644299,1707526231512,-191.42,0.000269,2]
[313644300,1707526231521,-157.012,0.00026998,2]
[313644301,1707526231531,-157.76958907,0.00027222,2]
[313644302,1707526231541,-224.99,0.00027222,8]
[313644303,1707526231550,-150.99,0.00027222,2]
[313644304,1707526231560,-282.47810204,0.00027417,2]
[313644305,1707526231572,-2474.0,0.0002742,2]
[313644306,1707526231592,-1036.777,0.0002742,2]
[313644307,1707526231601,-388.0,0.0002742,2]
[313644308,1707526231611,-2828.0,0.0002742,2]
[313644309,1707526231621,-1250.0,0.0002742,2]
[313644310,1707526231630,-7419.339,0.0002742,2]
[313644311,1707526231640,-4197.0,0.0002742,2]
[313644312,1707526231649,-3033.118,0.0002742,2]
[313644313,1707526231659,-363.264,0.0002742,2]
[313644314,1707526231669,-19811.0,0.0002742,2]
[313644316,1707526231678,-28229.0,0.0002742,2]
[313644317,1707526231687,-211.473,0.0002742,2]
[313644318,1707526231697,-157.012,0.00027498,2]
[313644319,1707526231707,-157.76958907,0.00027676,2]
[313644320,1707526231716,-1000.0,0.000277,2]
[313644321,1707526231726,-500.0,0.00027738,2]
[313644324,1707526231742,-250.0,0.0002775,2]
[313644326,1707526231752,-798.01,0.00027784,2]
[313644328,1707526231761,-150.0,0.00027787,2]
[313644330,1707526231771,-157.012,0.00027998,2]
[313644332,1707526231781,-1014.04,0.00028069,2]
[313644334,1707526231791,-157.76958907,0.00028131,2]
[313644336,1707526231800,-415.68,0.00028158,2]
[313644338,1707526231810,-156.4,0.00028274,2]
[313644340,1707526231819,-311.05,0.0002841,2]
[313644342,1707526231828,-1000.0,0.00028413,2]
[313644344,1707526231838,-171.12,0.00028432,2]
[313644346,1707526231847,-324.41864448,0.00028497,2]
[313644347,1707526231857,-157.012,0.00028498,2]
[313644348,1707526231866,-200.0,0.000285,3]
[313644349,1707526231876,-8997.09214174,0.000285,3]
[313644350,1707526231886,-1888.57,0.00028501,2]
[313644351,1707526231899,-157.76958907,0.00028586,2]
[313644352,1707526231908,-157.012,0.00028998,2]
[313644353,1707526231918,-250.0,0.00029,2]
[313644354,1707526231928,-18701.36778884,0.00029007,4]
[313644355,1707526231938,-11853.02,0.00029009,2]
[313644356,1707526231947,-416.32,0.00029009,2]
[313644357,1707526231956,-5433.14796168,0.00029035,2]
[313644358,1707526231966,-157.76958907,0.0002904,2]
[313644359,1707526231976,-253.62615809,0.00029274,2]
[313644360,1707526231986,-157.76958907,0.00029495,2]
[313644361,1707526231996,-157.012,0.00029498,2]
[313644362,1707526232006,-151.88193308,0.00029697,2]
[313644363,1707526232015,-153.43646037,0.00029697,2]
[313644364,1707526232026,-235.86294,0.00029697,2]
[313644365,1707526232038,-1014.04,0.00029712,2]
[313644366,1707526232054,-150.0,0.00029792,2]
[313644367,1707526232065,-1000.0,0.000298,3]
[313644368,1707526232076,-1000.0,0.000298,2]
[313644369,1707526232085,-1000.0,0.00029849,2]
[313644370,1707526232094,-1000.0,0.00029849,2]
[313644371,1707526232103,-1000.0,0.00029849,2]
[313644372,1707526232112,-1000.0,0.00029849,2]
[313644373,1707526232122,-186.0791,0.00029849,2]
[313644374,1707526232132,-150.0,0.00029896,2]
[313644375,1707526232142,-3436.59550712,0.00029897,6]
[313644376,1707526232152,-10017.48618847,0.00029899,2]
[313644377,1707526232161,-2000.0,0.000299,3]
[313644378,1707526232170,-47722.35023056,0.000299,2]
[313644379,1707526232197,-1008.9263289,0.000299,2]
[313644380,1707526232210,-21206.32714054,0.000299,2]
[313644381,1707526232219,-58228.7112,0.000299,2]
[313644382,1707526232228,-604.37844804,0.000299,2]
[313644383,1707526232237,-157.76958907,0.0002995,2]
[313644384,1707526232246,-2330.17048584,0.00029989,6]
[313644385,1707526232256,-881.68139531,0.00029989,2]
[313644386,1707526232265,-300.02,0.00029996,2]
[313644387,1707526232274,-813.0026247,0.00029996,2]
[313644388,1707526232284,-265.74492833,0.00029997,2]
[313644389,1707526232293,-7667.16816885,0.00029997,2]
[313644390,1707526232302,-868.55251577,0.00029997,2]
[313644391,1707526232311,-1153.75350663,0.00029997,2]
[313644392,1707526232321,-204.7712179,0.00029997,2]
[313644393,1707526232330,-155.0,0.00029997,2]
[313644394,1707526232339,-200.0,0.00029997,2]
[313644395,1707526232349,-342.76188401,0.00029997,2]
[313644396,1707526232359,-1060.55480173,0.00029997,2]
[313644397,1707526232368,-200.0,0.00029997,2]
[313644398,1707526232377,-155.0,0.00029997,2]
[313644399,1707526232387,-2000.0,0.00029997,2]
[313644400,1707526232396,-200.0,0.00029997,2]
[313644401,1707526232406,-2000.0,0.00029997,2]
[313644402,1707526232414,-200.0,0.00029997,2]
[313644403,1707526232424,-200.0,0.00029997,2]
[313644404,1707526232433,-157.021,0.00029998,2]
[313644405,1707526232442,-159.50414588,0.00029999,2]
[313644406,1707526232451,-682.97517687,0.00029999,2]
[313644407,1707526232460,-155.0,0.00029999,2]
[313644408,1707526232470,-3478.9879533,0.00029999,2]
[313644409,1707526232479,-2826.5985761,0.00029999,2]
[313644410,1707526232488,-5415.2852876,0.00029999,2]
[313644411,1707526232497,-136796.13682731,0.00029999,2]
[313644412,1707526232509,-728.55789219,0.00029999,2]
[313644413,1707526232521,-723.29357829,0.00029999,2]
[313644414,1707526232576,-2235.73026678,0.00029999,2]
[313644426,1707526237636,-206.0,0.0002966,2]
[313644427,1707526237646,-722.66899974,0.00029996,2]
[313644428,1707526237655,-11621.3323221,0.00029999,2]
[313644429,1707526237680,-465.31925396,0.00029999,2]
[313644430,1707526237711,-2880.66178339,0.00029999,2]
[313644431,1707526237722,-676.6056036,0.00029999,2]
[313644432,1707526237733,-385.89,0.00029999,2]
[313644436,1707526237890,-22252.1048497,0.00029999,2]
[313644457,1707526240314,-250.0,0.00029998,2]
[313644458,1707526240337,-392.37244421,0.00029998,2]
[313644459,1707526240346,-852.6427019,0.00029999,2]
[313644460,1707526241043,-4252.18336365,0.00029999,2]
[313644483,1707526242426,-1471.99970644,0.00029999,2]
[313644484,1707526242466,-742.5,0.00029999,2]
[313644485,1707526242632,-485.305,0.00029999,2]
[313644486,1707526242644,-1058.38863214,0.00029999,2]
[313644487,1707526242690,-1596.9,0.00029999,2]
[313644488,1707526242750,-1555.91707367,0.00029999,2]
[313644499,1707526245433,-318.17604449,0.00029999,2]
[313644500,1707526245493,-5256.27431291,0.00029999,2]
[313644501,1707526245556,-4471.10785053,0.00029999,2]
[313644502,1707526245568,-12229.45427015,0.00029999,2]
[313644503,1707526245577,-20754.72768323,0.00029999,2]
[313644504,1707526245589,-8523.83998097,0.00029999,2]
[313644558,1707527431776,-77363.1044567,0.00023,2]
[313644559,1707527431785,-157.76958907,0.000249,2]
[313644560,1707527431794,-1250.0,0.00025,3]
[313644561,1707527431804,-416.19,0.0002629,2]
[313644562,1707527431813,-157.012,0.00026498,2]
[313644563,1707527431822,-1006.10027701,0.00026698,5]
[313644564,1707527431831,-2112.36331966,0.00026698,4]
[313644565,1707527431844,-558.62,0.00026698,4]
[313644566,1707527431938,-528.32143207,0.00026698,4]
[313644576,1707527437646,-623.67242696,0.00026698,4]
[313644577,1707527437658,-2035.01088504,0.00026698,4]
[313644578,1707527437700,-4288.94780188,0.00026698,4]
[313644579,1707527437712,-1503.78793264,0.00026698,4]
[313644580,1707527437810,-473.40282023,0.00026698,4]
[313644581,1707527437865,-302.66159581,0.00026698,4]
[313644773,1707527440252,-1728.28490829,0.00026698,4]
[313644776,1707527440263,-253.15263832,0.00026698,4]
[313644866,1707527441081,-4293.14202794,0.00026698,4]
[313644868,1707527441090,-5517.31209307,0.000267,2]
[313645072,1707527442797,-2597.31461489,0.000267,2]
[313645073,1707527442811,-5567.37329204,0.000267,2]
[313645074,1707527442821,-162.71,0.000269,2]
[313645075,1707527442830,-157.012,0.00026998,2]
[313645076,1707527442840,-1300.0,0.00027,3]
[313645077,1707527442850,-3313.39420798,0.0002742,2]
[313645078,1707527442906,-8024.02979202,0.0002742,2]
[313645080,1707527442916,-157.012,0.00027498,2]
[313645082,1707527442926,-296.21,0.00027953,2]
[313645083,1707527442936,-157.012,0.00027998,2]
[313645086,1707527442946,-10000.0,0.00028,2]
[313645087,1707527442956,-701.91,0.00028002,2]
[313645089,1707527442967,-150.0,0.00028093,2]
[313645091,1707527442977,-250.0,0.00028119,2]
[313645093,1707527442986,-156.22,0.00028151,2]
[313645095,1707527442996,-665.0,0.00028235,2]
[313645097,1707527443006,-1000.0,0.00028419,7]
[313645100,1707527443017,-1621.85,0.00028425,2]
[313645101,1707527443028,-157.012,0.00028498,2]
[313645103,1707527443038,-324.41864448,0.00028499,2]
[313645105,1707527443048,-1000.0,0.000285,2]
[313645108,1707527443057,-5000.0,0.000285,2]
[313645110,1707527443067,-416.19,0.00028553,2]
[313645113,1707527443077,-171.12,0.00028642,2]
[313645115,1707527443087,-1000.0,0.0002884,2]
[313645117,1707527443098,-157.012,0.00028998,2]
[313645118,1707527443107,-1350.0,0.00029,3]
[313645121,1707527443119,-157.012,0.00029498,2]
[313645123,1707527443129,-4587.66,0.000295,3]
[313645124,1707527443138,-2171.64512489,0.00029645,6]
[313645126,1707527443147,-701.91,0.00029645,2]
[313645128,1707527443156,-153.43646037,0.00029699,2]
[313645130,1707527443166,-300.0,0.0002979,2]
[313645133,1707527443177,-1000.0,0.000298,2]
[313645134,1707527443186,-1000.0,0.000298,3]
[313645136,1707527443195,-7437.8534,0.00029897,2]
[313645138,1707527443205,-613.39106494,0.00029899,4]